[Event "8th Montevideo Open 2025"]
[Site "Montevideo"]
[Date "2025.02.02"]
[Round "3.3"]
[White "Villca, Julian"]
[Black "Brizzi, Milagros Tatiana"]
[Result "1-0"]
[Annotator "TA"]
[ECO "D46"]
[WhiteElo "2413"]
[BlackElo "2150"]
[PlyCount "101"]
[EventDate "2025.02.01"]
[EventType "swiss"]
[EventCountry "URU"]
[SourceTitle "playchess.com"]
[Source "ChessBase"]
[SourceQuality "1"]
[TimeControl "5400+30"]

{[%evp 16,101,16,0,0,-16,-10,-14,39,29,27,32,43,33,55,58,61,33,77,75,145,110,121,109,273,276,275,273,234,229,227,210,561,293,385,218,206,213,383,167,277,276,264,278,275,276,270,263,272,272,271,268,273,237,274,203,317,230,350,320,283,267,252,257,723,688,771,732,856,838,2944,1402,2307,1972,29956,6199,29974,29975,29985,29986,29966,29967,29964,29965,29991,29992,29993,29994]} 1. c4 {[%emt 0:10:33]} c6 {[%emt 0:00:33]} 2. Nf3 {[%emt 0:00:08]} d5 {[%emt 0:00:42]} 3. e3 {[%emt 0:00:05]} Nf6 {[%emt 0:01:15]} 4. Nc3 {[%emt 0:00:08]} e6 {[%emt 0:01:36]} 5. d4 {[%emt 0:00:10]} Nbd7 {[%emt 0:01:11]} 6. b3 {[%emt 0:02:24]} Bd6 {[%emt 0:03:52]} 7. Bd3 {[%emt 0:00:11]} O-O {[%emt 0:02:04]} 8. Bb2 $1 {[%emt 0:01:30][%mdl 4] is now more promising than 8.0-0.} Qe7 {[%emt 0:01:26]} 9. O-O {[%emt 0:03:05]} e5 {[%emt 0:06:38] D46: Semi-Slav: 5 e3 Nbd7 6 Bd3, Black avoids the Meran.} 10. Nh4 {[%emt 0:14:54]} g6 $146 {[%emt 0:02:47] Prevents Nf5} (10... Bb8 11. cxd5 cxd5 12. Nf5 Qe6 13. Ng3 e4 14. Be2 g6 15. Qd2 h5 16. Rfc1 a6 17. a4 {1-0 Shamatava,N (1888)-Torosyan,V (1874) Poti op 16th 2023 (8)}) 11. cxd5 {[%emt 0:05:56]} e4 {[%emt 0:02:35] Black sacrificed a pawn} (11... exd4 $11 12. exd4 Nxd5) 12. dxc6 $1 $14 {[%emt 0:03:34]} bxc6 {[%emt 0:11:17]} 13. Be2 {[%emt 0:02:20]} Nb6 {[%emt 0:02:50]} 14. g3 $1 {[%emt 0:04:42]} Qe6 {[%emt 0:05:41]} 15. Ng2 {[%emt 0:08:30]} Nbd5 {[%emt 0:05:17]} 16. Qd2 {[%emt 0:02:54]} Qh3 {[%emt 0:04:06]} 17. f3 {[%emt 0:00:46]} exf3 {[%emt 0:06:45]} ({Black should try} 17... Bf5) 18. Bxf3 $16 {[%emt 0:00:13] [#] Successful Defense White} Ba6 {[%emt 0:02:23]} 19. Rf2 {[%emt 0:09:06]} Nb4 $2 {[%emt 0:06:49] Loses the game.} (19... Rae8 $16) 20. Be2 $18 {[%emt 0:07:35]} Ng4 {[%emt 0:01:42]} 21. Nf4 {[%emt 0:00:52]} Bxf4 {[%emt 0:01:12]} 22. Bxg4 {[%emt 0:00:12]} Qxg4 {[%emt 0:00:29]} 23. Rxf4 {[%emt 0:00:08]} Qe6 {[%emt 0:06:03]} (23... Qd7 24. Ne4 Nd5) 24. Ba3 {[%emt 0:00:55]} c5 {[%emt 0:00:52]} 25. Bxb4 {[%emt 0:02:33]} (25. dxc5 Nd3 26. Ra4 Rad8 $16) (25. Ne4 $142 Nd3 26. Nxc5 (26. Nf6+ Kh8 $18) 26... Nxc5 27. Bxc5) 25... cxb4 {[%emt 0:00:03]} 26. Ne4 {[%emt 0:00:07] Nf6+ is the strong threat.} Bb7 $2 {[%emt 0:08:38]} (26... f5) 27. Nc5 {[%emt 0:01:43]} (27. Nf6+ $142 Kg7 28. Raf1 (28. Qxb4 Qxe3+ 29. Rf2 Rfb8 $18)) 27... Qb6 {[%emt 0:00:54]} (27... Qe7 {was necessary.} 28. e4 (28. Qxb4 Qxe3+ 29. Rf2 Bc6 $16) 28... a5) 28. Nd7 {[%emt 0:03:32][%csl LRb6,LRf8]} Qc6 {[%emt 0:00:05] Strongly threatening ...Qh1+.} 29. Nf6+ {[%emt 0:00:04]} (29. Nxf8 Qh1+ 30. Kf2 Qxa1 $19 (30... Qxh2+ 31. Ke1 $11)) 29... Kg7 {[%emt 0:00:05]} 30. d5 {[%emt 0:00:04] Active counter play!} (30. Qxb4 $2 Qg2#) 30... Qc3 {[%emt 0:00:10]} 31. Qxc3 {[%emt 0:01:51]} bxc3 {[%emt 0:00:01]} 32. Rc1 {[%emt 0:00:37]} Rac8 {[%emt 0:00:53]} 33. e4 {[%emt 0:00:29][%cal Be3e4,Be4e5][%mdl 32]} Rfd8 {[%emt 0:00:46]} 34. g4 {[%emt 0:01:14]} h6 {[%emt 0:02:05]} 35. h4 {[%emt 0:03:16]} Rd6 {[%emt 0:03:54]} (35... c2 $142 36. Rf3 Rd6) 36. e5 {[%emt 0:01:00]} Ra6 {[%emt 0:00:15]} (36... Rxd5 $142 37. Nxd5 Bxd5) 37. d6 {[%emt 0:03:15][%cal Bd5d6,Bd6d7][%mdl 32]} Rxa2 {[%emt 0:01:13]} 38. d7 {[%emt 0:00:37]} Rd8 {[%emt 0:00:59]} ({But not} 38... Rg2+ 39. Kf1 Rd8 40. Rb4 $18 (40. Rxc3 Rd2 $18)) 39. Rxc3 {[%emt 0:00:14]} Re2 $2 {[%emt 0:04:35]} (39... Rg2+ 40. Kf1 Rd2) 40. Rc7 {[%emt 0:01:29]} Ba6 {[%emt 0:01:10]} 41. Ne8+ {[%emt 0:01:27]} Kg8 {[%emt 0:01:30]} 42. Nd6 {[%emt 0:00:10]} Rxe5 {[%emt 0:01:16]} 43. Nxf7 {[%emt 0:00:18]} Re1+ {[%emt 0:00:35]} 44. Kg2 {[%emt 0:00:06]} g5 {[%emt 0:01:25]} 45. hxg5 {[%emt 0:00:11]} hxg5 {[%emt 0:00:04]} 46. Rf2 {[%emt 0:00:18] White mates.} Bd3 {[%emt 0:01:14]} 47. Nxd8 {[%emt 0:00:34]} Be4+ {[%emt 0:00:03] [#]} 48. Rf3 $1 {[%emt 0:00:12]} Re3 {[%emt 0:00:27]} 49. Ne6 {[%emt 0:00:24][%cal Rd7d8]} Rxf3 {[%emt 0:01:42]} 50. Rc8+ {[%emt 0:00:21]} Kf7 {[%emt 0:00:32]} 51. Nxg5+ {[%emt 0:00:05] Weighted Error Value: White=0.24 (precise) /Black=1.04  Loses game:     	---       	Black=1      Mistake:       	White=2     	Black=8      Inaccurate:     	White=2     	Black=2      OK:         	White=11    	Black=9      Best:        	White=3     	Black=2      Strong:       	White=2     	---} ({And not} 51. d8=B Rc3+ (51... Kxe6 52. Kh2 $11) (51... Rxb3+ 52. Kf2 $11) 52. Kf2 Rxc8 53. Nxg5+ Kg6 $19) 1-0

[Event "8th Montevideo Open 2025"]
[Site "Montevideo"]
[Date "2025.02.02"]
[Round "3.4"]
[White "Hoffman, Alejandro"]
[Black "Bauza, Alejandro"]
[Result "1-0"]
[Annotator "TA"]
[ECO "B38"]
[WhiteElo "2368"]
[BlackElo "2116"]
[PlyCount "65"]
[EventDate "2025.02.01"]
[EventType "swiss"]
[EventCountry "URU"]
[SourceTitle "playchess.com"]
[Source "ChessBase"]
[SourceQuality "1"]
[TimeControl "5400+30"]

{[%evp 21,65,37,43,37,37,33,39,40,42,41,27,37,37,34,39,41,58,64,46,45,74,56,101,97,112,112,174,178,176,173,203,183,190,156,202,209,254,251,559,554,558,544,778,764,762,727]} 1. Nf3 {[%emt 0:02:28]} Nf6 {[%emt 0:00:38]} 2. c4 {[%emt 0:00:32]} c5 {[%emt 0:01:30]} 3. Nc3 {[%emt 0:00:29]} Nc6 {[%emt 0:02:03]} 4. d4 {[%emt 0:01:07]} cxd4 {[%emt 0:01:09]} 5. Nxd4 {[%emt 0:00:08]} g6 {[%emt 0:00:31]} 6. e4 {[%emt 0:00:52]} d6 {[%emt 0:00:24]} 7. Be2 {[%emt 0:00:33]} Bg7 {[%emt 0:00:29]} 8. Be3 {[%emt 0:00:31]} O-O {[%emt 0:00:25]} 9. O-O {[%emt 0:00:36]} Bd7 {[%emt 0:00:18]} 10. h3 {[%emt 0:03:20]} Nxd4 {[%emt 0:01:16]} 11. Bxd4 {[%emt 0:00:09]} Bc6 {[%emt 0:00:19]} 12. Qc2 {[%emt 0:00:51] B38: Sicilian: Maroczy Bind with 5...Bg7 and 7...0-0.} a5 {[%emt 0:01:12]} 13. Rad1 {[%emt 0:02:21]} Qc7 {[%emt 0:01:10]} 14. b3 {[%emt 0:07:45] White is slightly better.} Nd7 {[%emt 0:07:20]} 15. Bxg7 {[%emt 0:01:40]} Kxg7 {[%emt 0:05:33]} 16. a3 {[%emt 0:03:12][%cal Ba2a3,Ba3a4][%mdl 32]} Kg8 $146 {[%emt 0:12:21]} (16... Nf6 17. Rfe1 Rfe8 {½-½ Martin,J (2390)-Hausrath,D (2469) Staufer op 33rd 2023 (4)}) 17. Rd2 {[%emt 0:08:33]} b6 {[%emt 0:08:21]} 18. Re1 {[%emt 0:08:25]} Rfd8 {[%emt 0:08:55][%cal Bf8d8,Bd8d7,Bd7c7][%mdl 32]} 19. Nd5 {[%emt 0:06:58]} Bxd5 {[%emt 0:00:23]} 20. exd5 {[%emt 0:00:29]} Nf6 {[%emt 0:12:16][%cal Bd7f6,Bf6e8,Be8g7][%mdl 32]} 21. a4 {[%emt 0:04:34]} Ra7 {[%emt 0:03:15]} 22. Bd1 {[%emt 0:01:31]} Rd7 {[%emt 0:03:16]} 23. g4 {[%emt 0:01:47][%cal Bg2g4,Bg4g5][%mdl 32] White is more active. Black is weak on the light squares} Qd8 {[%emt 0:00:22]} (23... Rd8 $16 24. g5 Ne8) 24. g5 $18 {[%emt 0:00:56]} Ne8 {[%emt 0:00:03]} 25. Bg4 {[%emt 0:00:55]} Rdc7 {[%emt 0:00:13]} 26. h4 {[%emt 0:05:11]} Ng7 {[%emt 0:00:08]} 27. f4 {[%emt 0:02:18]} f5 {[%emt 0:05:26] White has space advantage and is better} (27... Ra8 $16 {was worth a try.} 28. Rh2 f5) 28. Bf3 {[%emt 0:01:49]} Qf8 {[%emt 0:00:47]} 29. Rh2 {[%emt 0:00:39]} h5 $2 {[%emt 0:08:46]} (29... Rc8 30. h5 Nxh5 31. Bxh5 gxh5) 30. gxh6 {[%emt 0:00:31] White is clearly winning.} Ne8 {[%emt 0:00:05]} 31. Rg2 {[%emt 0:02:15] [#] Re6 would now be deadly.} Qf6 {[%emt 0:06:02]} 32. Qf2 {[%emt 0:06:23]} e5 {[%emt 0:04:14]} 33. h5 {[%emt 0:01:06] Weighted Error Value: White=0.03 (flawless) /Black=0.47  Mistake:       	---       	Black=3      Inaccurate:     	---       	Black=3      OK:         	White=11    	Black=6      Best:        	White=1     	---} 1-0

[Event "8th Montevideo Open 2025"]
[Site "Montevideo"]
[Date "2025.02.02"]
[Round "3.5"]
[White "Villegas, Franco"]
[Black "De Lima, Adriano Gaspar"]
[Result "1-0"]
[Annotator "TA"]
[ECO "B90"]
[WhiteElo "2325"]
[BlackElo "2073"]
[PlyCount "77"]
[EventDate "2025.02.01"]
[EventType "swiss"]
[EventCountry "URU"]
[SourceTitle "playchess.com"]
[Source "ChessBase"]
[SourceQuality "1"]
[TimeControl "5400+30"]

{[%evp 22,77,0,0,61,64,67,73,123,111,170,170,157,161,171,143,168,161,143,88,93,75,109,105,120,108,112,83,91,85,100,32,49,29,83,81,91,85,93,51,83,84,78,72,128,69,145,155,152,172,437,431,1435,839,948,926,849,769]} 1. e4 {[%emt 0:00:06]} c5 {[%emt 0:02:14]} 2. Nf3 {[%emt 0:00:24]} d6 {[%emt 0:01:41]} 3. d4 {[%emt 0:00:17]} cxd4 {[%emt 0:01:28]} 4. Nxd4 {[%emt 0:00:08]} Nf6 {[%emt 0:01:33]} 5. Nc3 {[%emt 0:00:07]} a6 {[%emt 0:00:16]} 6. Be3 {[%emt 0:00:38]} Ng4 {[%emt 0:01:54]} 7. Bc1 {[%emt 0:00:34]} Nf6 {[%emt 0:01:22]} 8. f3 {[%emt 0:00:19]} e5 {[%emt 0:01:52]} 9. Nb3 {[%emt 0:00:00]} Be6 10. Be3 {[%emt 1:32:57]} Nbd7 {[%emt 1:23:10] now supersedes 10...Be7.} 11. Qd2 {[%emt 0:00:30]} b5 {[%emt 0:00:30]} 12. O-O-O {[%emt 0:00:30]} b4 {[%emt 0:00:30] B90: Sicilian Najdorf: Unusual White 6th moves, 6 Be3 Ng4 and 6 Be3 e5.} (12... Be7 $11) 13. Nd5 $14 {[%emt 0:00:00]} Bxd5 {[%emt 0:00:00]} 14. exd5 {[%emt 0:00:00]} Nb6 {[%emt 0:00:00]} (14... a5) 15. Qxb4 $16 {[%emt 0:00:00]} Nbxd5 {[%emt 0:00:00]} (15... Nfxd5 $16 16. Bxb6 Nxb4 17. Bxd8 Kxd8) 16. Qa4+ $18 {[%emt 0:00:00]} Qd7 {[%emt 0:00:00]} 17. Qxd7+ {[%emt 0:00:00]} Kxd7 {[%emt 0:00:00]} 18. Bf2 {[%emt 0:00:00]} Nc7 {[%emt 0:00:00]} 19. g3 $146 {[%emt 0:00:00][%cal Bg2g3,Bg3f4,Bf4f5][%mdl 32]} (19. Kb1 a5 20. Nc5+ Kc6 21. Na4 Rb8 22. c4 h5 23. Bd3 Ne6 24. h4 Be7 25. Rhe1 Rhd8 26. Bc2 g6 27. Rd2 {½-½ Velmarin,J (1770)-Kiryushin,A (1768) RC-2012-0-00099}) 19... Ne6 {[%emt 0:00:00] [#]} 20. f4 {[%emt 0:00:00]} exf4 {[%emt 0:00:00]} 21. gxf4 {[%emt 0:00:00]} Ne4 {[%emt 0:00:00]} 22. Be3 {[%emt 0:00:00] This pair of bishops is nice.} f5 {[%emt 0:00:00]} 23. Bg2 {[%emt 0:00:00]} Re8 {[%emt 0:00:00]} 24. Bxe4 {[%emt 0:00:00]} fxe4 {[%emt 0:00:00]} 25. f5 {[%emt 0:00:00]} Nc7 {[%emt 0:00:00]} 26. Bd4 {[%emt 0:00:00] Repels Re5. White has more active pieces.} (26. c4 $16) 26... Rg8 $14 {[%emt 0:00:00]} 27. Rhf1 {[%emt 0:00:00]} Kc6 {[%emt 0:00:00]} (27... d5 $11) 28. Kb1 $16 {[%emt 0:00:00]} Be7 {[%emt 0:00:00]} 29. c4 {[%emt 0:00:00][%csl Oa6,Od6] Black has weak pawns} Bf6 {[%emt 0:00:00]} 30. Na5+ {[%emt 0:00:00]} Kd7 {[%emt 0:00:00]} 31. Bc5 {[%emt 0:00:00]} Be5 {[%emt 0:00:00] [#]} 32. Bxd6 $1 {[%emt 0:00:00]} Bxd6 {[%emt 0:00:00]} 33. Nb7 {[%emt 0:00:00]} (33. c5 $16) 33... Kc6 {[%emt 0:00:00]} 34. Nxd6 {[%emt 0:00:00]} (34. Rxd6+ $2 {loses.} Kxb7 35. Rd7 e3 $19) 34... Re5 {[%emt 0:00:00]} 35. Nf7 $36 {[%emt 0:00:00][%mdl 2048] Prevents Rd8. White has strong initiative.} Re7 {[%emt 0:00:00] [#]} (35... Ree8) 36. Nd8+ $1 $18 {[%emt 0:00:00] White is clearly winning.} Kb6 {[%emt 0:01:23]} (36... Rxd8 $142 37. Rxd8 Kc5) 37. f6 {[%emt 0:00:00]} Rxd8 {[%emt 0:04:54]} 38. fxe7 {[%emt 0:00:00]} Re8 {[%emt 0:00:07]} 39. Rf7 {[%emt 0:00:00] Weighted Error Value: White=0.24 (precise) /Black=0.51  Mistake:       	White=3     	Black=6      Inaccurate:     	White=1     	Black=3      OK:         	White=10    	Black=8      Best:        	White=4     	Black=1      Strong:       	White=1     	---        Brilliant:      	White=1     	---} 1-0

[Event "8th Montevideo Open 2025"]
[Site "Montevideo"]
[Date "2025.02.02"]
[Round "3.6"]
[White "Carvalho, Guillermo"]
[Black "Larrea, Manuel"]
[Result "0-1"]
[Annotator "TA"]
[ECO "B31"]
[WhiteElo "2094"]
[BlackElo "2265"]
[PlyCount "116"]
[EventDate "2025.02.01"]
[EventType "swiss"]
[EventCountry "URU"]
[SourceTitle "playchess.com"]
[Source "ChessBase"]
[SourceQuality "1"]
[TimeControl "5400+30"]

{[%evp 23,115,9,16,13,11,18,34,2,19,0,0,10,0,0,0,-131,-120,-258,-235,-240,-195,-402,-378,-519,-527,-632,-627,-526,-651,-656,-643,-601,-601,-585,-426,-431,-440,-740,-420,-413,-372,-435,-428,-445,-417,-415,-438,-442,-438,-431,-383,-516,-502,-465,-452,-956,-816,-984,-984,-994,-639,-1033,-1033,-1008,-956,-854,-1125,-1068,-1033,-4041,-241,-587,0,-1608,0,-224,-153,-153,-153,-29964,-29958,-29950,-12448,-12845,-1808,-10210,-961,-5422,-5276,-29984,-29985,-29988,-29987,-29991]} 1. e4 {[%emt 0:00:04]} c5 {[%emt 0:05:32]} 2. Nf3 {[%emt 0:00:25]} Nc6 {[%emt 0:00:21]} 3. Bb5 {[%emt 0:00:23]} g6 {[%emt 0:00:31]} 4. O-O {[%emt 0:02:28]} Bg7 {[%emt 0:00:14]} 5. Re1 {[%emt 0:01:50]} Nf6 {[%emt 0:01:58][%cal Bg8f6,Bf6e8,Be8c7,Bc7e6][%mdl 32]} 6. Nc3 {[%emt 0:04:33]} O-O {[%emt 0:08:31]} 7. e5 {[%emt 0:02:44]} Ne8 {[%emt 0:00:06]} 8. Bxc6 {[%emt 0:08:07]} dxc6 {[%emt 0:04:50]} 9. d3 {[%emt 0:02:01]} Nc7 {[%emt 0:03:54]} 10. h3 {[%emt 0:03:18]} Ne6 {[%emt 0:01:02]} 11. a4 {[%emt 0:03:44] is currently scoring better than 11.Ne4.} a5 {[%emt 0:03:17]} 12. Ne4 {[%emt 0:10:26]} b6 {[%emt 0:05:58]} 13. Rb1 {[%emt 0:07:07] B31: Sicilian: 2...Nc6 3 Bb5 g6.} Ra7 {[%emt 0:06:35]} 14. b3 {[%emt 0:05:28]} f5 {[%emt 0:17:09]} 15. exf6 {[%emt 0:06:08] White is slightly better.} exf6 {[%emt 0:01:23]} 16. Bb2 {[%emt 0:05:32]} f5 $146 {[%emt 0:01:38]} (16... Re7 17. Qd2 Nd4 18. Nxd4 cxd4 19. Ng3 c5 20. Rxe7 Qxe7 21. Re1 Qd6 22. Bc1 f5 {1-0 Adams,M (2708)-Kramnik,V (2760) FIDE-Wch k.o. g/15+10 rapid 1999 (5.5)}) 17. Bxg7 {[%emt 0:11:27]} Rxg7 {[%emt 0:00:25]} 18. Ng3 {[%emt 0:01:59]} f4 $36 {[%emt 0:09:57][%mdl 2048] Black has some pressure.} 19. Nf1 {[%emt 0:00:27] [#]} (19. Ne4 $11 {was the only way to keep the balance.}) 19... g5 $1 $17 {[%emt 0:02:03]} 20. N1h2 {[%emt 0:00:40]} (20. d4 $17 Nxd4 (20... cxd4 21. Qd3 $17) 21. N1h2) 20... h5 $19 {[%emt 0:02:50]} 21. Ne5 {[%emt 0:03:01]} f3 {[%emt 0:01:25]} 22. Re3 $2 {[%emt 0:03:25]} ({Much weaker is} 22. gxf3 Nf4 23. Qd2 Nxh3+ (23... Bxh3 $2 24. Re3 $19) 24. Kh1 g4 $19) (22. Nxc6 $2 Qd6 (22... Qe8 $2 23. d4 $19) 23. Nxf3 (23. Ne5 $2 fxg2 24. Kxg2 Nf4+ 25. Kf1 Bxh3+ 26. Kg1 Be6 $19) 23... Qxc6) (22. Nhxf3 g4 23. hxg4 (23. Nxc6 $2 Qf6 $19) 23... hxg4) (22. g3 {was worth a try.}) 22... fxg2 {[%emt 0:04:12]} 23. Qxh5 {[%emt 0:05:40]} Nf4 {[%emt 0:03:01]} 24. Qd1 {[%emt 0:05:24]} Nxh3+ {[%emt 0:03:10]} 25. Rxh3 {[%emt 0:00:24]} Bxh3 {[%emt 0:00:08]} 26. Qh5 {[%emt 0:01:35] [#] Prevents Rxf2} g4 {[%emt 0:05:49]} 27. Nexg4 {[%emt 0:01:42]} (27. Nhxg4 Bxg4) 27... Bxg4 {[%emt 0:01:16]} 28. Nxg4 {[%emt 0:00:20] Black must now prevent Nh6+.} Qg5 {[%emt 0:00:33]} 29. Qxg5 {[%emt 0:03:09]} Rxg5 {[%emt 0:00:03][%mdl 4096] Endgame KRR-KRN} 30. Nh2 {[%emt 0:00:52]} (30. Ne3 $142 Rf4 31. Re1) 30... Re8 {[%emt 0:02:15]} 31. Nf3 {[%emt 0:00:20]} Rg7 {[%emt 0:00:16]} 32. Re1 {[%emt 0:00:35] Wards off Re6} Rxe1+ {[%emt 0:02:44]} 33. Nxe1 {[%emt 0:00:08] KR-KN} b5 {[%emt 0:00:01]} 34. Nxg2 {[%emt 0:00:22]} bxa4 {[%emt 0:00:22]} 35. bxa4 {[%emt 0:00:14]} Rb7 {[%emt 0:00:06]} 36. Kf1 {[%emt 0:00:16]} Rb4 {[%emt 0:00:06]} 37. Ke1 {[%emt 0:01:11]} c4 {[%emt 0:00:46]} 38. Kd2 {[%emt 0:00:27]} cxd3 {[%emt 0:00:13]} ({Not} 38... Rxa4 39. d4 $19) 39. Kxd3 (39. cxd3 $142 Rxa4 40. Ne3) 39... Rxa4 40. Ne3 {[%emt 0:01:37]} Kf7 {[%emt 0:01:27]} 41. Nc4 {[%emt 0:00:25]} Ke6 {[%emt 0:00:51]} 42. Kc3 {[%emt 0:00:21]} c5 {[%emt 0:00:57]} 43. f3 {[%emt 0:01:02]} Kf5 {[%emt 0:01:40] Strongly threatening ...Ke6.} 44. Nd6+ {[%emt 0:00:27]} Ke5 {[%emt 0:00:57]} 45. Nc4+ {[%emt 0:00:09]} Ke6 {[%emt 0:00:06]} 46. f4 {[%emt 0:00:48]} Ra1 $2 {[%emt 0:01:41]} (46... Rb4 47. Nxa5 Kd5 (47... Rxf4 $2 48. Nb3 $19)) 47. Kb2 {[%emt 0:01:15]} Ra4 {[%emt 0:00:18]} (47... Rh1 $142 48. f5+ Kxf5 49. Nxa5 Ke5) 48. Kc3 {[%emt 0:00:00]} Ra1 $2 {[%emt 0:00:06]} (48... Rb4 49. Nxa5 Rxf4) 49. Kb2 {[%emt 0:00:00]} Rf1 {[%emt 0:00:15]} 50. Nxa5 {[%emt 0:01:30]} Kd5 {[%cal Oc5c4] ( -> ...c4!) Black is more active.} 51. Nb3 $2 {[%emt 0:00:00]} (51. c4+ $17 Kd6 52. Nb3) 51... Rxf4 {[%emt 0:00:48]} 52. Nd2 {[%emt 0:00:00]} Rg4 {[%emt 0:01:26]} (52... Rf2 $142 53. Nb1 Rf8 54. Nc3+ Kc4 55. Ne2 Re8 56. Ng3 Kb4 57. Nf5 Re5 58. Ng3 c4 59. c3+ Ka4 60. Kc2 Rg5 61. Ne4 Rg2+ 62. Kd1 Kb3 63. Ke1 Rh2 64. Kd1 Ra2 (64... Rh4 $2 65. Nd6 $19) 65. Ke1 Ra5 66. Nf2 Kxc3 67. Nh3 Re5+ 68. Kf2 Rh5 69. Ng1 Kd3 70. Nf3 Rf5 71. Kg2 Rxf3 72. Kxf3 c3 73. Kf4 c2 74. Kf5 c1=Q (74... c1=B 75. Kg6 $11) 75. Ke6 Qc5 76. Kf6 Qd6+ 77. Kg7 Qe7+ 78. Kh6 Ke4 79. Kh5 Kf5 80. Kh6 Qd7 81. Kh5 Qh7#) 53. Nb1 {[%emt 0:01:30]} Rg3 {[%emt 0:00:41]} (53... Kd4 $142 54. Nc3 Rg7 55. Ne2+ Kc4) 54. Nd2 {[%emt 0:00:00]} Rh3 {[%emt 0:00:57]} (54... Kd4 $142 55. Nb3+ Kd5) 55. Nb1 {[%emt 0:00:10]} Kd4 {[%emt 0:00:14] ( -> ...c4)} 56. Nd2 {[%emt 0:00:46]} c4 {[%emt 0:00:17] Black mates.} 57. Nb1 {[%emt 0:00:22]} Rh8 {[%emt 0:00:51]} 58. Na3 {[%emt 0:00:37]} Rb8+ {[%emt 0:00:23] Weighted Error Value: White=0.92/Black=1.01  Loses game:     	White=1     	---        Mistake:       	White=5     	Black=1      Inaccurate:     	White=3     	Black=1      OK:         	White=6     	Black=8      Best:        	White=4     	Black=4      Strong:       	---       	Black=1} 0-1